bitfinex/quotes_ETHUSD_20220219
["timestamp","ask_amount","ask_price","bid_price","bid_amount"]
[1645293334161,0.90496,2764.7,2764.5,0.65707486]
[1645293336510,0.90496,2764.7,2764.6,1.53669531]
[1645293342207,1.8099,2764.9,2764.7,0.73420554]
[1645293342409,1.8099,2764.9,2764.8,1.53669531]
[1645293342916,0.90488,2765.0,2764.8,1.53669531]
[1645293343310,1.0,2765.1,2764.8,1.53669531]
[1645293343510,1.35676443,2765.4,2764.8,1.53669531]
[1645293343709,0.35676443,2765.4,2764.8,1.53669531]
[1645293343911,0.30665443,2765.4,2764.8,1.53669531]
[1645293344112,0.90475,2765.3,2764.8,1.53669531]
[1645293344515,0.90489,2765.2,2764.8,1.53669531]
[1645293344714,0.91154443,2765.2,2764.8,1.53669531]
[1645293344913,1.91154443,2765.2,2764.7,0.73420554]
[1645293345114,1.8098,2765.1,2764.8,1.5367038]
[1645293346755,1.8098,2765.1,2764.9,0.01794294]
[1645293347356,2.8098,2765.1,2764.9,0.01794294]
[1645293349057,2.8098,2765.1,2765.0,1.53661551]
[1645293349256,2.8098,2765.1,2764.9,0.01794294]
[1645293349719,0.90489,2765.2,2764.9,0.01794294]
[1645293349919,0.91150443,2765.4,2765.0,1.53657229]
[1645293349920,0.00665443,2765.4,2765.0,1.53657229]
[1645293350119,0.00292056,2765.6,2765.1,3.5]
[1645293350415,0.00292056,2765.6,2765.2,1.53657229]
[1645293350620,0.00665443,2766.2,2765.3,1.53657229]
[1645293350815,0.00292075,2765.6,2764.9,0.01794294]
[1645293351015,0.00292075,2765.6,2765.0,1.53642947]
[1645293351817,1.81620473,2765.7,2765.0,1.53642947]
[1645293352017,1.20482,2765.5,2765.0,1.53642947]
[1645293352217,1.20482,2765.5,2764.9,0.01794294]
[1645293352218,0.522,2765.4,2764.9,0.01794294]
[1645293352417,0.52865443,2765.4,2764.9,0.01794294]
[1645293353276,3.24352443,2765.4,2764.9,0.01794294]
[1645293353460,0.3,2765.3,2764.9,0.01794294]
[1645293353659,3.23697,2765.2,2764.9,0.01794294]
[1645293353862,1.0,2765.1,2764.9,0.01794294]
[1645293354061,0.522,2765.0,2764.9,0.01794294]
[1645293356261,0.522,2765.0,2764.9,1.55462143]
[1645293356461,0.522,2765.0,2764.9,0.01794294]
[1645293359215,0.522,2765.0,2764.9,1.91631257]
[1645293360217,0.522,2765.0,2764.9,0.37964294]
[1645293361262,0.522,2765.0,2764.9,0.01794294]
[1645293361659,0.822,2765.0,2764.9,0.01794294]
[1645293362058,0.83186626,2765.0,2764.7,0.73420554]
[1645293362257,1.81025,2764.9,2764.7,0.73420554]
[1645293362457,0.90513,2764.8,2764.7,0.73420554]
[1645293362860,1.90513,2764.8,2764.7,0.73420554]
[1645293363057,1.90513,2764.8,2764.7,2.27094454]
[1645293363257,0.90513,2764.8,2764.7,2.27094454]
[1645293363665,1.90513,2764.8,2764.7,0.73420554]
[1645293364061,1.90513,2764.8,2764.7,2.2709583]
[1645293364916,0.90513,2764.8,2764.7,2.2709583]
[1645293366819,0.91577441,2764.8,2764.7,2.2709583]
[1645293370865,1.91577441,2764.8,2764.7,2.2709583]
[1645293371062,0.91577441,2764.8,2764.7,0.73420554]
[1645293371264,1.91577441,2764.8,2764.7,2.27101561]
[1645293372020,0.91149443,2765.1,2764.7,2.27101561]
[1645293372320,1.51149443,2765.1,2764.8,1.53681007]
[1645293373521,1.51149443,2765.1,2764.8,1.53577962]
[1645293376766,1.51149443,2765.1,2764.9,0.01794129]
[1645293376964,1.50484,2765.1,2764.9,0.01794129]
[1645293378569,2.4098132,2765.1,2764.9,0.01794129]
[1645293378867,2.50484,2765.1,2764.9,0.01794129]
[1645293382115,3.4098251,2765.1,2764.9,0.01794129]
[1645293383270,4.3148051,2765.1,2764.9,0.01794129]
[1645293384158,3.40982,2765.1,2764.9,0.01794129]
[1645293384358,2.50484,2765.1,2764.9,0.01794129]
[1645293388114,0.90484,2765.1,2764.9,0.01794129]
[1645293388316,0.91141443,2765.3,2764.9,0.01794129]
[1645293389516,1.91141443,2765.3,2764.9,0.01794129]
[1645293392066,0.01071046,2765.1,2764.7,0.73420554]
[1645293393667,0.01071046,2765.1,2764.8,1.53664812]
[1645293393869,0.01071046,2765.1,2764.8,1.53505278]
[1645293396412,0.01071046,2765.1,2765.0,0.58417604]
[1645293399365,0.01071046,2765.1,2764.7,0.73420554]
[1645293399767,0.91555046,2765.1,2764.7,0.73420554]
[1645293400571,0.91555046,2765.1,2764.7,1.23881851]
[1645293400966,0.91555046,2765.1,2764.7,0.73420554]
[1645293401166,0.92220489,2765.1,2764.7,0.73420554]
[1645293402615,0.91149443,2765.1,2765.0,0.01948322]
[1645293402811,0.90484,2765.1,2765.0,0.01948322]
[1645293407266,0.90484,2765.1,2764.7,0.73420554]
[1645293407466,0.91149443,2765.1,2764.7,0.73420554]
[1645293410814,0.91149443,2765.1,2764.5,0.51395297]
[1645293412019,0.91149443,2765.1,2764.5,0.49446975]
[1645293413675,0.91149443,2765.1,2764.5,3.99446975]
[1645293413976,0.91149443,2765.1,2764.6,1.53664872]
[1645293417115,0.91149443,2765.1,2764.7,0.01955162]
[1645293417318,0.91149443,2765.1,2764.8,1.53664872]
[1645293418221,0.91149443,2765.1,2764.8,1.53566226]
[1645293419917,0.90484,2765.1,2764.8,1.53566226]
[1645293422169,0.91601377,2765.1,2764.8,1.53566226]
[1645293422370,0.91601377,2765.1,2764.5,0.49446975]
[1645293422571,0.9226682,2765.1,2764.5,0.49446975]
[1645293425540,0.91601377,2765.1,2764.5,0.49446975]
[1645293425743,0.9226682,2765.1,2764.5,0.49446975]
[1645293426138,0.9226682,2765.1,2764.6,3.5]
[1645293426940,0.9226682,2765.1,2764.5,0.49446975]
[1645293427739,0.9226682,2765.1,2764.6,3.5]
[1645293427940,0.91601377,2765.1,2764.6,3.5]
[1645293428581,0.00665443,2765.3,2765.1,1.62770292]
[1645293428776,0.00665443,2765.5,2765.1,1.62770292]
[1645293428972,0.00317414,2765.6,2765.1,1.62770292]
[1645293429675,0.00317414,2765.6,2765.4,0.62113576]
[1645293429874,0.00665443,2765.7,2765.4,0.62113576]
[1645293430072,0.00317444,2765.6,2765.4,0.62113576]
[1645293430875,0.90468,2765.6,2765.4,0.62113576]
[1645293431276,0.90785454,2765.6,2765.4,0.62113576]
[1645293431477,0.90785454,2765.6,2765.1,5.12770292]
[1645293431676,0.00665443,2765.5,2765.1,1.62770292]
[1645293432718,0.00665443,2765.5,2765.3,0.6087673]
[1645293432918,0.00997321,2765.6,2765.3,0.6087673]
[1645293433121,0.00331878,2765.6,2765.3,0.6087673]
[1645293433319,0.00665443,2765.8,2765.3,0.6087673]
[1645293433724,0.00331887,2765.6,2765.3,0.6087673]
[1645293434519,0.00665443,2765.8,2765.3,0.6087673]
[1645293434920,0.00331887,2765.6,2765.3,0.6087673]
[1645293435764,0.00665443,2765.8,2765.3,0.6087673]
[1645293436970,0.00665443,2765.8,2765.4,3.5]
[1645293437372,0.91115443,2766.1,2765.3,0.6087673]
[1645293437572,0.91115443,2766.1,2765.4,0.02197092]
[1645293437769,0.91115443,2766.1,2765.4,3.52197092]
[1645293438169,0.91115443,2766.1,2765.5,1.5362264]
[1645293439715,0.00331856,2765.9,2765.5,1.5362264]
[1645293440317,0.90789856,2765.9,2765.5,1.5362264]
[1645293440517,0.91123443,2765.9,2765.5,1.5362264]
[1645293440716,0.91123443,2765.9,2765.6,3.5]
[1645293440921,0.00331862,2765.8,2765.7,1.5362264]
[1645293441117,0.00331862,2765.8,2765.5,1.5362264]
[1645293441319,0.00331862,2765.8,2765.6,1.5362264]
[1645293441523,0.00331862,2765.8,2765.4,0.02197092]
[1645293441720,0.91123443,2765.9,2765.5,1.5362683]
[1645293441920,0.91123443,2765.9,2765.4,0.02197092]
[1645293442121,0.00331862,2765.8,2765.4,0.02197092]
[1645293442720,0.00331862,2765.8,2765.3,0.6087673]
[1645293442919,0.91123443,2765.9,2765.4,1.53633476]
[1645293443368,0.00309797,2765.7,2765.4,1.53633476]
[1645293444170,0.91123443,2765.9,2765.4,1.53633476]
[1645293444366,0.003098,2765.7,2765.4,1.53633476]
[1645293445365,0.9045,2766.1,2765.4,1.53633476]
[1645293445366,0.91115443,2766.1,2765.4,1.53633476]
[1645293445568,0.00665443,2766.1,2765.4,5.03633476]
[1645293445772,0.00665443,2766.1,2765.3,0.6087673]
[1645293445773,0.003098,2765.7,2765.5,5.03633476]
[1645293445966,0.003098,2765.7,2765.6,1.53633476]
[1645293446567,0.00665443,2766.1,2765.6,1.53633476]
[1645293446770,0.00309795,2765.8,2765.6,1.53633476]
[1645293447215,0.00309795,2765.8,2765.6,1.55828289]
[1645293447418,0.00309795,2765.8,2765.6,0.02194813]
[1645293447615,0.00309795,2765.8,2765.7,1.53616408]
[1645293447820,0.00665443,2766.1,2765.7,1.53616408]
[1645293448018,0.00311492,2765.8,2765.6,0.02194813]
[1645293449019,0.00665443,2766.2,2765.6,0.02194813]
[1645293449218,0.00311492,2765.8,2765.6,0.02194813]
[1645293450219,0.00665443,2766.2,2765.6,0.02194813]
[1645293450421,0.00311492,2765.8,2765.6,0.02194813]
[1645293451469,0.00665443,2766.2,2765.6,0.02194813]
[1645293451671,0.00311338,2765.8,2765.6,0.02194813]
[1645293451868,0.00311338,2765.8,2765.6,0.02084784]
[1645293452268,0.00311338,2765.8,2765.3,0.6087673]
[1645293452474,0.00665443,2766.2,2765.4,5.03620389]
[1645293452672,0.00665443,2766.2,2765.5,1.53620389]
[1645293452871,0.00311338,2765.8,2765.5,1.53620389]
[1645293453873,0.00665443,2766.2,2765.5,1.53620389]
[1645293454071,0.00311341,2765.8,2765.5,1.53620389]
[1645293454520,0.00311341,2765.8,2765.3,0.6087673]
[1645293454521,0.00311341,2765.8,2765.6,1.53620389]
[1645293454826,0.00311341,2765.8,2765.7,1.53620389]
[1645293455022,0.00665443,2766.2,2765.5,1.53620389]
[1645293455223,0.00311353,2765.8,2765.6,1.53620389]
[1645293455523,0.00311353,2765.8,2765.7,1.53620389]
[1645293455726,0.00311353,2765.8,2765.5,1.53620389]
[1645293456124,0.00665443,2766.2,2765.8,0.00103815]
[1645293456326,0.91108443,2766.3,2765.8,0.00103815]
[1645293456526,0.01245235,2766.2,2765.8,0.00103815]
[1645293457431,0.91108443,2766.3,2765.8,0.00103815]
[1645293457628,0.00311338,2766.1,2765.8,0.00103815]
[1645293458664,0.91108443,2766.3,2765.8,0.00103815]
[1645293458868,0.00331848,2766.1,2765.8,0.00103815]
[1645293459866,0.91108443,2766.3,2765.8,0.00103815]
[1645293460072,0.00331848,2766.1,2765.8,0.00103815]
[1645293460967,0.91108443,2766.3,2765.8,0.00103815]
[1645293461169,0.00331848,2766.1,2765.8,0.00103815]
[1645293462222,0.51200697,2766.3,2765.8,0.00103815]
[1645293462422,0.00331848,2766.1,2765.8,0.00103815]
[1645293462625,0.00331848,2766.1,2765.9,0.02183113]
[1645293463522,0.51200697,2766.3,2765.9,0.02183113]
[1645293463722,0.00331845,2766.1,2765.9,0.02183113]
[1645293464523,0.00665443,2766.3,2765.9,0.02183113]
[1645293464922,0.00331845,2766.1,2765.9,0.02183113]
[1645293465867,0.62359739,2766.3,2765.9,0.02183113]
[1645293466069,0.00331845,2766.1,2765.9,0.02183113]
[1645293467069,0.62359739,2766.3,2765.9,0.02183113]
[1645293467369,0.00331845,2766.1,2765.8,0.00103815]
[1645293467568,0.00331845,2766.1,2765.8,1.53711494]
[1645293467780,0.00331845,2766.1,2765.9,1.53607679]
[1645293468072,0.00331845,2766.1,2765.8,0.00103815]
[1645293468269,0.00665443,2766.3,2765.8,0.00103815]
[1645293468468,0.00331845,2766.1,2765.8,0.00103815]
[1645293468671,0.00331845,2766.1,2765.8,1.53714315]
[1645293468868,0.00331845,2766.1,2765.9,3.5]
[1645293469071,0.00331845,2766.1,2766.0,1.536105]
[1645293469371,0.00665443,2766.3,2766.1,0.00663689]
[1645293469623,0.00665443,2766.5,2766.2,1.536105]
[1645293469822,0.0132718,2766.6,2766.2,1.536105]
[1645293469823,0.01992623,2766.6,2766.2,1.536105]
[1645293470025,0.0132718,2766.6,2766.3,0.59123295]
[1645293470221,0.0132718,2766.6,2766.4,5.036105]
[1645293470434,0.0132718,2766.6,2766.5,5.036105]
[1645293470626,0.007,2766.7,2766.5,5.036105]
[1645293470823,0.007,2766.7,2766.5,3.5]
[1645293471427,0.007,2766.7,2766.6,1.53572281]
[1645293472425,0.007,2766.7,2766.6,5.03572582]
[1645293472630,0.007,2766.7,2766.6,1.53572582]
[1645293473033,0.007,2766.7,2766.4,1.53572582]
[1645293473277,0.007,2766.7,2766.5,1.5357242]
[1645293473679,0.007,2766.7,2766.1,1.21883689]
[1645293473879,0.007,2766.7,2766.2,1.53587007]
[1645293474479,0.00331822,2766.5,2766.2,1.53587007]
[1645293475479,0.01365443,2766.7,2766.2,1.53587007]
[1645293475687,0.00331825,2766.5,2766.2,1.53587007]
[1645293476579,0.007,2766.7,2766.2,1.53587007]
[1645293476780,0.00331825,2766.5,2766.3,0.62874536]
[1645293477824,0.007,2766.7,2766.3,0.62874536]
[1645293478025,0.00331822,2766.5,2766.3,0.62874536]
[1645293478625,0.00331822,2766.5,2766.4,5.03577133]
[1645293478825,0.00331822,2766.5,2766.4,1.53577133]
[1645293479026,0.007,2766.7,2766.3,0.62874536]
[1645293479225,0.00331819,2766.6,2766.3,0.62874536]
[1645293479427,0.00331819,2766.6,2766.4,1.53581287]
[1645293479628,0.00331819,2766.6,2766.3,0.62874536]
[1645293480228,0.007,2766.7,2766.3,0.62874536]
[1645293480428,0.00331819,2766.6,2766.3,0.62874536]
[1645293481087,0.00331819,2766.6,2766.4,1.53577721]
[1645293481491,0.007,2766.7,2766.4,1.53577721]
[1645293481687,0.00331819,2766.6,2766.4,1.53577721]
[1645293482690,0.007,2766.7,2766.4,1.53577721]
[1645293482890,0.00331816,2766.6,2766.4,1.53577721]
[1645293483191,0.00331816,2766.6,2766.3,0.62874536]
[1645293483592,0.00331816,2766.6,2766.1,1.21883689]
[1645293483791,0.01365443,2766.7,2766.2,1.53585046]
[1645293484190,0.00331819,2766.6,2766.2,1.53585046]
[1645293484619,0.00331819,2766.6,2766.2,2.02797272]
[1645293484822,0.00331819,2766.6,2766.3,1.53585046]
[1645293485022,0.007,2766.7,2766.3,1.53585046]
[1645293485223,0.00331822,2766.5,2766.3,1.53585046]
[1645293486225,0.007,2766.7,2766.3,1.53585046]
[1645293486422,0.00309944,2766.5,2766.1,1.21883689]
[1645293486622,0.00309944,2766.5,2766.2,1.53582144]
[1645293487223,0.00309944,2766.5,2766.2,5.03582144]
[1645293487425,0.007,2766.7,2766.3,2.181718]
[1645293487623,0.00309947,2766.5,2766.3,0.64589656]
[1645293488024,0.00309947,2766.5,2766.1,1.21883689]
[1645293488267,0.00309947,2766.5,2766.2,1.53581789]
[1645293488472,0.00309947,2766.5,2766.2,5.03581789]
[1645293488673,0.007,2766.7,2766.3,1.53581789]
[1645293488870,0.007,2766.7,2766.2,1.53581789]
[1645293488871,0.00309947,2766.5,2766.2,1.53581789]
[1645293489068,0.00309947,2766.5,2766.3,1.53582264]
[1645293489870,0.007,2766.7,2766.3,1.53582264]
[1645293490070,0.00309944,2766.5,2766.3,1.53582264]
[1645293491074,0.007,2766.7,2766.3,1.53582264]
[1645293491279,0.00310836,2766.5,2766.3,1.53582264]
[1645293492120,0.007,2766.7,2766.3,1.53582264]
[1645293492523,0.00310836,2766.5,2766.4,0.01777564]
[1645293492722,0.00310836,2766.5,2766.4,1.55359828]
[1645293493322,0.91132,2766.7,2766.4,1.55359828]
[1645293493524,0.00665443,2766.6,2766.4,0.01777564]
[1645293493726,0.00310834,2766.6,2766.4,0.01777564]
[1645293493930,0.00310834,2766.6,2766.4,0.01665792]
[1645293494525,0.91132,2766.7,2766.4,0.01665792]
[1645293494925,0.00310622,2766.6,2766.4,0.01665792]
[1645293495771,0.007,2766.7,2766.4,0.01665792]
[1645293496174,0.00310622,2766.6,2766.4,0.01665792]
[1645293496972,0.007,2766.7,2766.4,0.01665792]
[1645293497274,0.007,2766.7,2766.1,0.00663689]
[1645293497275,0.00310622,2766.6,2766.1,0.00663689]
[1645293497472,0.00310622,2766.6,2766.2,1.53583581]
[1645293498176,0.007,2766.7,2766.2,1.53583581]
[1645293498577,0.00310641,2766.5,2766.2,1.53583581]
[1645293499377,0.007,2766.7,2766.2,1.53583581]
[1645293499628,0.00310644,2766.5,2766.2,1.53583581]
[1645293500529,0.007,2766.7,2766.2,1.53583581]
[1645293501029,0.00310644,2766.5,2766.2,1.53583581]
[1645293502031,0.007,2766.7,2766.2,1.53583581]
[1645293502232,0.00310643,2766.5,2766.2,1.53583581]
[1645293502631,0.00310643,2766.5,2766.4,0.02166369]
[1645293502832,0.00310643,2766.5,2766.4,1.5574995]
[1645293503035,0.007,2766.7,2766.4,1.5574995]
[1645293503275,0.00310638,2766.6,2766.5,1.53583581]
[1645293504277,0.007,2766.7,2766.5,1.53583581]
[1645293504483,0.01010633,2766.7,2766.5,1.53583581]
[1645293505478,0.007,2766.7,2766.5,1.53583581]
[1645293505679,0.01011389,2766.7,2766.5,1.53583581]
[1645293506679,0.007,2766.7,2766.5,1.53583581]
[1645293506880,0.01011389,2766.7,2766.5,1.53583581]
[1645293507321,0.01011389,2766.7,2766.6,0.02156442]
[1645293507922,0.007,2766.7,2766.6,1.55734247]
[1645293512178,0.007,2766.7,2766.6,1.53577805]
[1645293512779,0.007,2766.7,2766.1,4.44615999]
[1645293512980,0.007,2766.7,2766.2,5.03577805]
[1645293513181,0.007,2766.7,2766.3,1.53577805]
[1645293513385,0.007,2766.7,2766.4,3.5]
[1645293513582,0.00976731,2766.8,2766.7,0.014]
[1645293513583,0.00311288,2766.8,2766.7,0.014]
[1645293513780,0.68853,2767.6,2766.7,0.014]
[1645293513781,0.00665443,2767.5,2766.7,5.04977805]
[1645293513983,0.00665443,2767.5,2766.8,1.53577805]
[1645293514181,0.00665443,2767.5,2766.9,3.5]
[1645293514381,0.00665443,2767.5,2767.0,1.53577805]
[1645293515133,0.00665443,2767.5,2767.1,1.53577805]
[1645293515334,0.00311011,2767.4,2767.2,0.46197794]
[1645293516136,0.50665443,2767.6,2767.2,0.46197794]
[1645293516535,0.0032214,2767.4,2766.7,4.114]
[1645293516836,0.0032214,2767.4,2766.8,1.53556151]
[1645293516837,0.00987583,2767.4,2766.8,1.53556151]
[1645293517439,0.00665443,2767.4,2766.8,1.53556151]
[1645293517734,0.00665443,2767.4,2766.9,0.61255588]
[1645293517735,0.00322151,2767.2,2766.9,0.61255588]
[1645293517935,0.00226405,2767.2,2767.0,1.53556151]
[1645293518135,0.00226405,2767.2,2766.9,0.61255588]
[1645293518378,0.00226405,2767.2,2767.0,1.53555651]
[1645293518575,0.00665443,2767.4,2767.0,1.53555651]
[1645293519178,0.00665443,2767.4,2766.9,0.61255588]
[1645293519376,0.00665443,2767.4,2767.0,1.53553441]
[1645293520177,0.00310267,2767.3,2767.0,1.53553441]
[1645293520582,0.00310267,2767.3,2766.9,0.61255588]
[1645293520778,0.00310267,2767.3,2767.0,1.53552299]
[1645293520978,0.00665443,2767.4,2767.0,1.53552299]
[1645293521379,0.00310272,2767.2,2767.0,1.53552299]
[1645293522251,0.90403,2767.3,2767.0,1.53552299]
[1645293522458,0.00310272,2767.2,2767.1,0.02145459]
[1645293522657,0.00975715,2767.2,2767.1,0.02145459]
[1645293522850,0.00310272,2767.2,2767.1,0.02145459]
[1645293523452,1.04083,2767.3,2767.1,0.02145459]
[1645293523653,2.85414873,2767.3,2767.1,0.02145459]
[1645293523951,2.85334873,2767.3,2767.1,0.02145459]
[1645293524552,2.84864,2767.3,2767.1,0.02145459]
[1645293524751,2.71264,2767.3,2767.1,0.02145459]
[1645293524954,2.7157487,2767.3,2767.1,0.02145459]
[1645293525257,2.8517487,2767.3,2767.1,0.02145459]
[1645293525653,2.8541487,2767.3,2767.1,0.02145459]
[1645293525876,0.1368,2767.2,2767.1,0.02145459]
[1645293526077,0.1376,2767.2,2767.1,0.02145459]
[1645293526281,0.1384,2767.2,2767.1,0.02145459]
[1645293526480,0.1384,2767.2,2766.7,0.014]
[1645293526481,3.24805598,2767.0,2766.7,0.014]
[1645293526680,0.57193,2766.9,2766.7,0.014]
[1645293526885,1.522,2766.9,2766.7,0.014]
[1645293527379,1.52510333,2766.9,2766.7,0.014]
[1645293527581,0.90444,2766.8,2766.7,0.014]
[1645293528782,2.5,2766.7,2766.1,0.00663689]
[1645293528981,0.90456,2766.6,2766.2,1.53592826]
[1645293530424,1.8091189,2766.6,2766.2,1.53592826]
[1645293530621,3.6181889,2766.6,2766.2,1.53592826]
[1645293532424,3.71367,2766.5,2766.2,1.53592826]
[1645293532622,0.90453,2766.4,2766.2,1.53592826]
[1645293533876,0.90453,2766.4,2766.1,0.00663689]
[1645293534777,0.90453,2766.4,2766.2,1.53597503]
[1645293535781,3.21740443,2766.7,2766.2,1.53597503]
[1645293536079,0.91090443,2766.7,2766.2,1.53597503]
[1645293537032,0.91090443,2766.7,2766.2,1.5551747]
[1645293537232,0.91090443,2766.7,2766.2,0.01919967]
[1645293540234,0.91090443,2766.7,2766.3,1.53584998]
[1645293540897,0.00665443,2766.7,2766.4,3.5]
[1645293541086,0.00665443,2766.8,2766.5,1.53584998]
[1645293541284,0.00311111,2766.9,2766.5,1.53584998]
[1645293541483,2.2879,2767.3,2766.5,1.53584998]
[1645293541484,0.00665443,2767.2,2766.5,1.53584998]
[1645293541684,0.0031102,2766.9,2766.5,1.53584998]
[1645293542487,0.0031102,2766.9,2766.6,1.53584998]
[1645293542683,0.00665443,2767.0,2766.7,1.53584998]
[1645293542889,0.90411,2767.1,2766.3,0.3]
[1645293542890,0.00311023,2766.9,2766.3,0.3]
[1645293543085,0.00311023,2766.9,2766.4,1.53567565]
[1645293543686,0.00311023,2766.9,2766.5,3.5]
[1645293543884,0.91076443,2767.1,2766.6,1.53567565]
[1645293544084,0.0031102,2766.9,2766.6,1.53567565]
[1645293544284,0.0031102,2766.9,2766.7,1.53567565]
[1645293544545,0.0031102,2766.9,2766.3,3.8]
[1645293544741,0.0031102,2766.9,2766.4,1.53562654]
[1645293544943,0.0031102,2766.9,2766.5,3.5]
[1645293545242,0.00172282,2766.9,2766.8,0.65626295]
[1645293545844,0.00172282,2766.9,2766.8,2.19188949]
[1645293546246,0.91076443,2767.1,2766.8,0.65626295]
[1645293546442,0.00172293,2767.0,2766.8,0.65626295]
[1645293546642,0.81248736,2767.1,2766.3,3.8]
[1645293546843,0.81248736,2767.1,2766.4,1.53563636]
[1645293547044,0.81248736,2767.1,2766.5,3.5]
[1645293547248,0.01329665,2766.9,2766.6,1.53563636]
[1645293547445,0.01329665,2766.9,2766.7,3.5]
[1645293547644,0.01329665,2766.9,2766.8,1.53563636]
[1645293547845,0.01329665,2766.9,2766.5,1.53563636]
[1645293548046,0.01329665,2766.9,2766.6,5.03563636]
[1645293548277,0.01329665,2766.9,2766.7,1.53563636]
[1645293548472,0.01329665,2766.9,2766.8,1.53563636]
[1645293548872,0.01329665,2766.9,2766.6,1.53563636]
[1645293549073,0.01329665,2766.9,2766.7,1.53563636]
[1645293549275,0.01329665,2766.9,2766.8,1.53563636]
[1645293549476,0.01329665,2766.9,2766.6,1.53563636]
[1645293550275,0.01329665,2766.9,2766.6,5.03563636]
[1645293550475,0.01329665,2766.9,2766.7,1.53563636]
[1645293550677,0.01329665,2766.9,2766.8,1.53563636]
[1645293550875,0.01329665,2766.9,2766.6,1.53563636]
[1645293552322,0.00665443,2767.2,2766.7,0.0154717]
[1645293552522,0.00172179,2767.1,2766.7,0.0154717]
[1645293552723,0.00172179,2767.1,2766.8,1.53562968]
[1645293553523,0.00665443,2767.2,2766.8,1.53562968]
[1645293553724,0.00332013,2767.1,2766.8,1.53562968]
[1645293554724,0.91069443,2767.3,2766.8,1.53562968]
[1645293554923,0.00332013,2767.1,2766.8,1.53562968]
[1645293555783,0.91069443,2767.3,2766.8,1.53562968]
[1645293556178,0.00332013,2767.1,2766.8,1.53562968]
[1645293556975,0.91069443,2767.3,2766.8,1.53562968]
[1645293557176,0.91069443,2767.3,2766.9,0.01886421]
[1645293557375,0.00332013,2767.1,2766.9,0.01886421]
[1645293558177,0.91069443,2767.3,2766.9,0.01886421]
[1645293558577,0.00332016,2767.1,2766.9,0.01886421]
[1645293559530,0.91069443,2767.3,2766.9,0.01886421]
[1645293559731,0.00332016,2767.1,2766.9,0.01886421]
[1645293560731,0.91069443,2767.3,2766.9,0.01886421]
[1645293560931,0.00332016,2767.1,2766.9,0.01886421]
[1645293561933,0.00665443,2767.5,2766.9,0.01886421]
[1645293562430,0.00332016,2767.1,2766.6,4.12048089]
[1645293562632,0.00332016,2767.1,2766.7,1.53549502]
[1645293563031,0.904,2767.4,2766.7,1.53549502]
[1645293563276,0.00665443,2767.3,2766.8,3.5]
[1645293563475,0.0033201,2767.1,2766.9,1.53549502]
[1645293564380,0.00665443,2767.3,2766.6,4.12048089]
[1645293564579,0.00332016,2767.1,2766.7,1.53553873]
[1645293564778,0.00997459,2767.1,2766.7,1.53553873]
[1645293565476,0.00665443,2767.1,2766.7,1.53553873]
[1645293565678,0.00997453,2767.1,2766.7,1.53553873]
[1645293566778,0.00665443,2767.1,2766.7,1.53553873]
[1645293567032,0.00997453,2767.1,2766.7,1.53553873]
[1645293567328,0.00997453,2767.1,2766.8,0.02054935]
[1645293567529,0.00997453,2767.1,2766.9,1.53553873]
[1645293567727,0.0033201,2767.1,2766.9,1.53553873]
[1645293567927,2.83284514,2767.2,2766.9,1.53553873]
[1645293568128,0.00332016,2767.1,2766.9,1.53553873]
[1645293569147,2.83284514,2767.2,2766.9,1.53553873]
[1645293569326,0.00332016,2767.1,2766.9,1.53443778]
[1645293570332,0.00665443,2767.3,2766.9,1.53443778]
[1645293570530,0.00332016,2767.1,2766.9,1.53443778]
[1645293571578,0.00665443,2767.3,2766.9,1.53443778]
[1645293571779,0.00332016,2767.1,2766.9,1.53443778]
[1645293571980,0.01667555,2767.1,2766.9,1.53443778]
[1645293572179,0.01667555,2767.1,2766.6,3.5]
[1645293572180,0.01667555,2767.1,2766.6,3.8]
[1645293572384,0.01667555,2767.1,2766.6,4.1]
[1645293572781,0.01335539,2767.1,2766.6,4.1]
[1645293572980,0.01667546,2767.1,2766.6,4.1]
[1645293573984,0.01335539,2767.1,2766.6,4.1]
[1645293574183,0.01667546,2767.1,2766.6,4.1]
[1645293574628,0.01667546,2767.1,2766.6,3.8]
[1645293575033,0.01335539,2767.1,2766.6,3.8]
[1645293575529,0.01667546,2767.1,2766.6,3.8]
[1645293575931,0.01667546,2767.1,2766.7,11.04]
[1645293576132,0.01667546,2767.1,2766.8,3.5]
[1645293576332,0.01335539,2767.1,2766.7,11.34]
[1645293576532,0.01644917,2767.1,2766.7,11.34]
[1645293576732,0.01902816,2767.5,2767.1,0.03289833]
[1645293577536,0.01237373,2767.5,2767.1,0.03289833]
[1645293577732,0.00665443,2767.8,2767.5,0.57368449]
[1645293577931,0.00665443,2767.8,2767.1,0.03289833]
[1645293578986,0.90385,2767.7,2767.3,0.56674581]
[1645293579384,0.91050443,2767.7,2767.3,0.56674581]
[1645293580189,0.00171941,2767.6,2767.3,0.56674581]
[1645293581186,0.90383,2767.6,2767.3,0.56674581]
[1645293581386,0.90385,2767.5,2767.3,0.56674581]
[1645293582129,0.90385,2767.5,2767.3,0.58585329]
[1645293582329,0.90385,2767.5,2767.3,0.01910748]
[1645293582531,0.90716993,2767.5,2767.3,0.01910748]
[1645293583533,0.90385,2767.5,2767.3,0.01910748]
[1645293583834,0.90716993,2767.5,2767.3,0.01910748]
[1645293584734,0.90385,2767.5,2767.3,0.01910748]
[1645293584933,0.90716993,2767.5,2767.3,0.01910748]
[1645293585132,3.73972634,2767.5,2767.3,0.01910748]
[1645293585341,0.90716993,2767.5,2767.3,0.01910748]
[1645293585975,0.90385,2767.5,2767.3,0.01910748]
[1645293586178,0.90716993,2767.5,2767.3,0.01910748]
[1645293587177,0.90385,2767.5,2767.3,0.01910748]
[1645293587378,0.90716993,2767.5,2767.3,0.01910748]
[1645293588283,0.90385,2767.5,2767.3,0.01910748]
[1645293588580,0.90716993,2767.5,2767.3,0.01910748]
[1645293589627,0.90385,2767.5,2767.3,0.01910748]
[1645293589829,0.90716993,2767.5,2767.4,1.53540284]
[1645293590829,0.90385,2767.5,2767.4,1.53540284]
[1645293592632,0.90385,2767.5,2767.4,1.55451985]
[1645293596193,0.90385,2767.5,2767.1,0.03289833]
[1645293596194,1.80839,2767.4,2767.1,0.03289833]
[1645293596390,1.80839,2767.4,2766.0,0.00309531]
[1645293596391,0.90449,2766.8,2766.0,0.00309531]
[1645293596787,0.90449,2766.8,2765.7,0.68032705]
[1645293596788,0.95462,2766.8,2765.7,0.68032705]
[1645293597031,0.95462,2766.8,2765.6,0.68032705]
[1645293597032,3.68003676,2766.7,2765.6,0.68032705]
[1645293597229,3.68003676,2766.7,2766.0,0.00309466]
[1645293597528,5.06252676,2766.6,2766.0,0.00309466]
[1645293597730,0.522,2766.5,2766.0,0.00309466]
[1645293597929,3.68003676,2766.5,2765.6,1.32043898]